Cogmind - Beta 17 @@@ ROGUE MODE // 2026.08.11 @ 19:53:49 Player: Ev Result: Destroyed by Y-54 Guardian with Flak Gun Performance ------------- Evolutions (4) 2000 Regions Visited (12) 2400 Robots Destroyed (72) 360 Value Destroyed (1965) 1965 Prototype IDs (17) 340 Alien Tech Used (0) 0 Bonus (2041) 2041 TOTAL SCORE: 9106 Bonus ------- High Alert Combat Kills 41 Follower Combat Kills 1300 Entered Garrisons 200 Used RIF Installer 500 Cogmind --------- Core Integrity 0/850 Matter 300/300 Energy 99/100 System Corruption 3% Temperature Cool (6) Movement Core (50) Location -6/Extension Parts ------- > --- POWER (1) -------- (None) > --- PROPULSION (4) --- (None) > --- UTILITY (7) ------ (None) > --- WEAPON (3) ------- (None) > --- INVENTORY (5) ---- Advanced Visual Processing Unit Advanced Targeting Computer Authchip [R/Combat] Relay Coupler [Grunt] (25) Relay Coupler [Hunter] (17) Peak State ------------ > --- POWER ------------ (None) > --- PROPULSION ------- Heavy Treads Titanium Leg Improved Hover Unit > --- UTILITY ---------- Core Analyzer Hardened Medium Armor Plating Shield Generator Authchip [Device] Improved Corruption Screen > --- WEAPON ----------- Heavy Laser Improved Spread Laser Remote Datajack > --- INVENTORY -------- Microactuators Authchip [R/Combat] Relay Coupler [Grunt] Relay Coupler [Hunter] Improved Corruption Screen [Rating: 51] Favorites ----------- Power Light Ion Engine Engine Light Ion Engine Power Core Nuclear Core Propulsion Aluminum Leg Treads Heavy Treads Leg Aluminum Leg Wheel Compact Wheel Hover Unit Aerolev Unit Flight Unit Improved Flight Unit Utility Improved Terrain Scanner Device Improved Terrain Scanner Storage Small Storage Unit Processor Improved Corruption Screen Hackware Hacking Suite Protection Hardened Medium Armor Plating Weapon Light Assault Rifle Energy Gun Medium Laser Energy Cannon Advanced Beam Cannon Ballistic Gun Light Assault Rifle Launcher Shock Bomb Launcher Special Weapon Remote Datajack Impact Weapon Hammer Special Melee Weapon Improved Datajack Build | -11 -10 -9 -8 -8 -8 -7 -7 -7 -7 -7 -6 -6 ------- Run | Yrd Mat Mat Mat Sto Gar Fac Was Fac Low Low Fac Ext Slots Evolved 8 | . . 2 2 . . 2 . . . . 2 . Power . | . . . . . . . . . . . . . Propulsion 2 | . . 2 . . . . . . . . . . Utility 5 | . . . 1 . . 2 . . . . 2 . Weapon 1 | . . . 1 . . . . . . . . . Parts Attached 101 | 12 8 16 2 15 9 10 2 13 11 1 2 . Power 12 | 1 1 1 . 4 1 1 . 1 2 . . . Engine 10 | 1 1 1 . 4 1 1 . 1 . . . . Core 2 | . . . . . . . . . 2 . . . Reactor . | . . . . . . . . . . . . . Propulsion 24 | 3 2 6 . . 3 1 1 5 2 . 1 . Treads 2 | 1 . . . . . . 1 . . . . . Leg 3 | 2 . . . . . . . 1 . . . . Wheel 2 | . . . . . . . . 2 . . . . Hover 11 | . . 4 . . 3 1 . 2 . . 1 . Flight 6 | . 2 2 . . . . . . 2 . . . Utility 30 | 5 4 1 1 2 1 6 1 4 3 1 1 . Device 12 | 3 . . 1 . . 4 . 1 2 . 1 . Storage 6 | 2 1 . . 2 . . . . . 1 . . Processor 3 | . 1 . . . . . . 2 . . . . Hackware 3 | . . 1 . . . . 1 . 1 . . . Protection 6 | . 2 . . . 1 2 . 1 . . . . Artifact . | . . . . . . . . . . . . . Weapon 35 | 3 1 8 1 9 4 2 . 3 4 . . . Energy Gun 13 | . 1 3 . 5 2 . . 2 . . . . Energy Cannon 7 | . . 2 1 1 . 1 . . 2 . . . Ballistic Gun 7 | 2 . 3 . 1 . . . . 1 . . . Ballistic Cannon . | . . . . . . . . . . . . . Launcher 1 | . . . . . . . . . 1 . . . Special Weapon 4 | 1 . . . 1 . 1 . 1 . . . . Impact Weapon 1 | . . . . . 1 . . . . . . . Slashing Weapon . | . . . . . . . . . . . . . Piercing Weapon . | . . . . . . . . . . . . . Special Melee Weapon 2 | . . . . 1 1 . . . . . . . Unidentified Prototypes 11 | . 1 4 . 5 . . . 1 . . . . Corrupted Parts 1 | . . . . . . . 1 . . . . . System Corruption 5 | . . . . . . . 5 . . . . . Parts Lost 31 | . . . . 1 4 3 6 . 3 11 2 1 Power 5 | . . . . 1 1 . 1 . 1 1 . . Propulsion 9 | . . . . . . 1 3 . 2 2 1 . Utility 10 | . . . . . . 2 1 . . 5 1 1 Weapon 7 | . . . . . 3 . 1 . . 3 . . Highest Loss Streak 10 | . . . . 1 3 3 5 . 2 10 2 1 To Critical Strikes 1 | . . . . . . . 1 . . . . . Average Backups 9 | 7 9 16 19 19 19 19 15 4 5 5 5 5 Power . | . 1 . . . . . . . . . . . Propulsion 1 | 1 2 . . 3 2 . . . . . . . Utility 4 | 2 5 10 14 14 17 17 13 4 5 5 5 5 Weapon 1 | 1 . 1 3 . . 1 . . . . . . Tool/Special . | . . . . . . . . . . . . . Unused Backups 55 | 4 4 4 3 16 1 1 14 1 2 . . 5 Power 2 | . 1 . . 1 . . . . . . . . Propulsion 7 | 3 1 2 . 1 . . . . . . . . Utility 36 | 1 2 . 1 11 1 . 12 1 2 . . 5 Weapon 8 | . . 2 1 3 . 1 1 . . . . . Tool/Special 2 | . . . 1 . . . 1 . . . . . Average Slot Usage (%) 91 | . 99 99 99 99 97 99 56 66 93 33 12 3 Engine 7 | . 13 11 9 8 7 7 1 1 . . . . Leg 1 | . 4 . . . . . . 3 . . . . Hover 18 | . . 10 36 35 36 30 20 5 11 2 3 . Flight 9 | . 23 33 . . . . . . 13 2 . . Device 2 | . 2 . 9 . . 13 6 5 3 2 2 . Storage 11 | . 14 11 9 18 18 15 10 . . . . . Processor 3 | . . . . . . . . 10 15 10 6 3 Hackware 5 | . . 10 9 9 . . 1 7 13 6 . . Protection 5 | . 11 . . . 9 7 1 5 5 . . . Energy Gun 9 | . 12 10 . 15 15 . . 13 2 . . . Energy Cannon 5 | . . . 23 10 3 6 4 . 6 2 . . Ballistic Gun 4 | . 15 11 3 . . . . . 4 . . . Special Weapon 1 | . . . . . . 3 1 4 7 . . . Impact Weapon 1 | . . . . . 5 7 4 . . . . . Peak Build Rating 51 | 11 14 30 37 41 38 46 46 51 49 41 16 7 Average Rating 15 | 9 12 23 36 38 35 43 24 39 46 16 10 4 On Entrance 24 | . 10 14 29 37 38 34 46 17 41 41 7 7 Avg Prop Armor Cover (%) 5 | . . . . 4 . 8 . 11 4 6 . . Naked Turns 131 | . . . . . . . 21 . . . . 110 Heaviest Build 93 | 12 54 56 63 82 88 93 93 24 32 22 4 . Greatest Support 70 | 20 20 32 32 32 32 41 70 70 14 14 9 3 Greatest Overweight (x) 6 | . 5 6 1 2 2 6 4 2 4 1 1 . Average Overweight (x) . | . 1 1 1 2 2 1 . . 1 . . . Largest Inventory Capacity 20 | 8 20 20 20 20 20 20 20 5 5 5 5 5 Average Capacity 9 | 7 14 20 20 20 20 20 14 5 5 5 5 5 Most Carried 20 | 8 13 20 20 20 20 20 20 5 5 5 5 5 Average Carried 9 | 7 9 16 19 19 19 19 14 4 4 5 5 5 Final Capacity 20 | 8 20 20 20 20 20 20 5 5 5 5 5 5 Final Carried 20 | 8 13 20 20 20 20 20 5 5 5 5 5 5 Class Distribution -------------------- 84% | Mutant 4% | Commander-Gunner 3% | Derelict-Gunner Dominant Class ---------------- Mutant | -10/Materials Mutant | -9/Materials Gunner | -8/Materials Commander-Gunner | -8/Storage Mutant | -8/Garrison Bothacker-Mutant | -7/Factory Bothacker-Mutant | -7/Waste Tank | -7/Factory Derelict-Gunner | -7/Lower Caves Mutant | -7/Lower Caves Mutant | -6/Factory Mutant | -6/Extension Resources | -11 -10 -9 -8 -8 -8 -7 -7 -7 -7 -7 -6 -6 ----------- Run | Yrd Mat Mat Mat Sto Gar Fac Was Fac Low Low Fac Ext Matter Collected 2200 | 456 327 250 76 329 110 115 . 207 311 10 . 9 Remotely . | . . . . . . . . . . . . . Salvage Created 2681 | 209 419 479 76 487 281 181 . 313 211 25 . . Parts 151 | 18 22 29 3 29 15 6 . 13 15 1 . . Haulers Intercepted 7 | . 1 1 . 5 . . . . . . . . Recyclers Shooed 2 | . 1 1 . . . . . . . . . . Parts Field Recycled . | . . . . . . . . . . . . . Retrieved Matter . | . . . . . . . . . . . . . Parts Self-Destructed 18 | . . . . . . . . . 15 3 . . Prevented 4 | . . . . . . . . . . 4 . . Parts Restored . | . . . . . . . . . . . . . Kills | -11 -10 -9 -8 -8 -8 -7 -7 -7 -7 -7 -6 -6 ------- Run | Yrd Mat Mat Mat Sto Gar Fac Was Fac Low Low Fac Ext Combat Hostiles Destroyed 36 | . 6 6 1 2 10 4 . . 6 1 . . Melee 1 | . . . . . . 1 . . . . . . Guns 17 | . 6 6 . . 4 . . . 1 . . . Cannons 10 | . . . 1 2 2 . . . 5 . . . AOE 4 | . . . . . 3 . . . . 1 . . Classes Destroyed 13 | 3 5 2 . . 1 1 . . 1 . . . Worker 6 | 1 1 . . 1 . . . 3 . . . . Builder 2 | . . 2 . . . . . . . . . . Tunneler 5 | 5 . . . . . . . . . . . . Hauler 7 | . 1 1 . 5 . . . . . . . . Recycler 6 | 1 1 1 . . . . . 3 . . . . Operator 2 | . 1 . 1 . . . . . . . . . Watcher 8 | . 3 2 . 1 . . . 2 . . . . Swarmer 14 | . 3 . . . 7 . . . 3 1 . . Grunt 13 | . 3 4 . 1 2 3 . . . . . . Brawler 1 | . . . . . 1 . . . . . . . Sentry 4 | . . 2 1 1 . . . . . . . . Hunter 2 | . . . . . . . . . 2 . . . Programmer 2 | . . . . . . 1 . . 1 . . . Best Kill Streak 4 | 2 4 4 1 3 4 2 . 3 3 1 . . Combat Bots Only 4 | . 3 2 1 1 4 2 . . 3 1 . . Max Kills in Single Turn 3 | 1 2 2 1 1 3 1 . 1 1 1 . . Gunslinging . | . . . . . . . . . . . . . Exploded 2 | . . . . . 2 . . . . 1 . . Melee 1 | . . . . . . 1 . . . . . . Uniques/NPCs Destroyed . | . . . . . . . . . . . . . Combat | -11 -10 -9 -8 -8 -8 -7 -7 -7 -7 -7 -6 -6 -------- Run | Yrd Mat Mat Mat Sto Gar Fac Was Fac Low Low Fac Ext Hostile Shots Fired 427 | . 21 40 6 12 21 59 8 11 58 73 83 35 Missed 148 | . 7 9 2 5 . 11 . 4 14 37 41 18 Hits 279 | . 14 31 4 7 21 48 8 7 44 36 42 17 Melee 9 | . . . . . . . 8 . . 1 . . Projectile 270 | . 14 31 4 7 21 48 . 7 44 35 42 17 Critical Strikes 16 | . . 1 . 1 . 3 5 1 1 2 . 2 Actively Blocked 1 | . . . . . . 1 . . . . . . Part Disruptions 2 | . . . . 1 . 1 . . . . . . Actively Blocked 1 | . . . . . . 1 . . . . . . Damage Taken 4341 | . 131 376 57 307 393 681 301 75 540 519 571 390 Core 1757 | . 70 42 14 84 15 99 209 31 70 270 475 378 Absorbed by Shields 43 | . . . . . . 12 . 31 . . . . Redirected to Shielding 109 | . 5 . . . . 104 . . . . . . Regen/Repaired (Parts) 107 | . 2 . . 105 . . . . . . . . Core Remaining (%) 68 | 100 72 89 . . 79 . . . . 3 . . Volleys Fired 243 | 69 46 27 2 42 16 4 . 16 18 3 . . Largest 3 | 2 2 2 3 3 3 1 . 2 2 1 . . Hottest 204 | 100 70 112 204 204 158 5 . 144 93 36 . . Shots Fired 445 | 99 92 54 6 87 37 4 . 31 32 3 . . Gun 343 | 66 92 54 . 58 30 . . 30 13 . . . Cannon 50 | . . . 6 23 7 . . . 14 . . . Launcher 3 | . . . . . . . . . . 3 . . Special 49 | 33 . . . 6 . 4 . 1 5 . . . Kinetic 141 | 66 50 12 . . . . . . 13 . . . Thermal 207 | 33 42 42 6 40 . . . 30 14 . . . Explosive . | . . . . . . . . . . . . . Electromagnetic 87 | . . . . 47 37 . . . . 3 . . Robot Hit Streak 13 | 7 12 13 9 10 3 2 . 6 4 4 . . Robot Miss Streak 5 | 2 5 4 . 3 5 1 . 5 5 1 . . Penetration Max 1 | . . . . . . . . . 1 . . . Secondary Targets 4 | . 2 . . . 2 . . . . . . . Max Gunslinging Chain 1 | . 1 . . . 1 . . . . . . . Shots Hit Robots 266 | 43 48 37 5 34 17 38 . 23 19 2 . . Core Hits 122 | 14 23 17 2 12 10 1 . 25 11 4 . 3 Critical Kills . | . . . . . . . . . . . . . Critical Parts Destroyed 3 | . . . . . 1 2 . . . . . . Critical Strikes 10 | . 3 1 . 1 2 2 . 1 . . . . Burn 5 | . 3 1 . . . . . 1 . . . . Corrupt 1 | . . . . . 1 . . . . . . . Smash 3 | . . . . . 1 2 . . . . . . Sever 1 | . . . . 1 . . . . . . . . Melee Attacks 53 | . . . . . 16 37 . . . . . . Impact 22 | . . . . . 7 15 . . . . . . Slashing . | . . . . . . . . . . . . . Piercing . | . . . . . . . . . . . . . Sneak Attacks 22 | . . . . . . 22 . . . . . . Combat Hostiles . | . . . . . . . . . . . . . Follow-up Attacks . | . . . . . . . . . . . . . Damage Inflicted 4160 | 346 487 506 103 800 428 346 . 471 389 184 . 100 Guns 2558 | 346 487 506 . 419 196 . . 471 133 . . . Cannons 679 | . . . 103 255 65 . . . 256 . . . Explosions 349 | . . . . 62 108 . . . . 179 . . Melee 405 | . . . . . 59 346 . . . . . . Ramming 106 | . . . . 1 . . . . . 5 . 100 Kinetic 791 | 346 212 100 . . . . . . 133 . . . Thermal 2086 | . 275 406 103 467 108 . . 471 256 . . . Explosive . | . . . . . . . . . . . . . Electromagnetic 772 | . . . . 332 261 . . . . 179 . . Impact 405 | . . . . . 59 346 . . . . . . Slashing . | . . . . . . . . . . . . . Piercing . | . . . . . . . . . . . . . Highest Corruption 19 | . 1 1 . . . 2 19 19 19 19 . 3 Average Corruption 10 | . 1 1 . . . 2 8 19 19 19 . 3 Corruption Purged . | . . . . . . . . . . . . . Corruption Blocked 8 | . . . . . . . . . 1 7 . . Effects 113 | . 7 3 . . . 2 5 25 61 7 . 3 Message Errors 27 | . 2 1 . . . . . 7 16 . . 1 Matter Fused 22 | . . 1 . . . 1 2 3 14 . . 1 Heat Flow Errors 15 | . 2 . . . . . . 4 9 . . . Energy Discharges 15 | . 2 . . . . 1 1 2 8 1 . . Parts Rejected 1 | . . . . . . . . . . 1 . . Parts Fused 1 | . . . . . . . . . 1 . . . Data Loss (minor) 16 | . . 1 . . . . 2 4 8 1 . . Data Loss (major) 4 | . 1 . . . . . . 1 1 . . 1 Misfires 1 | . . . . . . . . . 1 . . . Alerts 5 | . . . . . . . . 2 2 1 . . Misdirections 6 | . . . . . . . . 2 1 3 . . Overload Shots . | . . . . . . . . . . . . . Overflow Damage 165 | . . . . 20 39 97 . . . 9 . . Projectiles 37 | . . . . 20 17 . . . . . . . Explosions 9 | . . . . . . . . . . 9 . . Melee 119 | . . . . . 22 97 . . . . . . Knockbacks 5 | . . . . . 2 2 . . . . . 1 Impact 5 | . . . . . 2 2 . . . . . 1 Kinetic . | . . . . . . . . . . . . . Secondary . | . . . . . . . . . . . . . Self-Inflicted Damage 121 | . . . . 35 6 . . . . 37 . 43 Shots 4 | . . . . 1 1 . . . . 2 . . Rammed 30 | . . . . 1 . . . . . 2 . 27 Targets Rammed 30 | . . . . 1 . . . . . 2 . 27 Kicked . | . . . . . . . . . . . . . Crushed . | . . . . . . . . . . . . . Highest Temperature 434 | 162 241 434 59 336 381 2 . 345 328 . . . Average Temperature 97 | 57 81 126 27 95 150 2 . 84 121 . . . Received Heat Transfer 989 | . 30 183 27 81 126 169 . 55 . 180 39 99 Effects 13 | . 1 6 . 1 3 . . 1 1 . . . Shutdowns 1 | . . . . . . . . . 1 . . . Energy Bleed 4 | . 1 1 . . 2 . . . . . . . Interference 3 | . . 2 . . . . . 1 . . . . Matter Decay 2 | . . 2 . . . . . . . . . . Damage (minor) 3 | . . 1 . 1 1 . . . . . . . Siege Activations . | . . . . . . . . . . . . . Martial Activations . | . . . . . . . . . . . . . Shielding Activations . | . . . . . . . . . . . . . Robots Disrupted . | . . . . . . . . . . . . . Combat Hostiles . | . . . . . . . . . . . . . Robots Corrupted 4 | . . . . . 1 3 . . . . . . Combat Hostiles 4 | . . . . . 1 3 . . . . . . Parts Fried 5 | . . . . . 1 4 . . . . . . Impact Corruptions 7 | . . . . . 1 6 . . . . . . Robots Melted . | . . . . . . . . . . . . . Combat Hostiles . | . . . . . . . . . . . . . Parts Melted 4 | . . 2 . 1 . . . . 1 . . . Heat Transferred 4419 | . 1036 1184 185 951 100 . . 630 333 . . . Parts Sabotaged . | . . . . . . . . . . . . . Parts Stolen . | . . . . . . . . . . . . . Parts Stripped . | . . . . . . . . . . . . . Power Chain Reactions 3 | . . . . 1 2 . . . . . . . Alert | -11 -10 -9 -8 -8 -8 -7 -7 -7 -7 -7 -6 -6 ------- Run | Yrd Mat Mat Mat Sto Gar Fac Was Fac Low Low Fac Ext Maximum Alert Level 3 | . . . . 2 3 2 . . . . 1 . Low Security (%) 90 | 100 100 100 100 30 . 25 100 100 . . 45 100 Level 1 5 | . . . . 55 13 71 . . . . 54 . Level 2 3 | . . . . 13 78 2 . . . . . . Level 3 . | . . . . . 8 . . . . . . . Level 4 . | . . . . . . . . . . . . . Level 5 . | . . . . . . . . . . . . . High Security . | . . . . . . . . . . . . . Max Security . | . . . . . . . . . . . . . Peak Influence 768 | 10 67 125 30 466 768 403 62 16 . . 338 165 Initial 403 | . . . . . 287 403 62 . . . 193 165 Average 42 | . 6 42 3 250 577 254 23 2 . . 244 124 Influence Increases 3514 | 35 212 201 50 1393 581 148 . 76 130 403 195 90 Destroy 0b10 Robot/C 1640 | . 120 120 20 600 340 80 . . 120 240 . . Destroy 0b10 Robot/NC 210 | 35 35 30 5 65 . . . 40 . . . . Destroy Leader 334 | . 38 46 10 176 10 10 . 4 10 30 . . Allied During Kill 475 | . . . . 422 25 . . . . 28 . . Successful Hack 129 | . 19 4 14 32 . 28 . 32 . . . . Disable Machine 135 | . . . . 90 45 . . . . . . . Anti-Garrison Action 150 | . . . . . 150 . . . . . . . Destroy Structure 21 | . . 1 1 8 11 . . . . . . . Lose Combat Pursuer 420 | . . . . . . 30 . . . 105 195 90 Influence Decreases 3419 | 35 212 201 50 951 255 737 179 76 80 145 165 333 Entered New Map 935 | . . . . . 155 365 117 . . 10 115 173 Time Decay 1767 | 35 212 201 50 521 . 342 40 76 60 50 30 150 Lost Part 237 | . . . . 10 40 30 22 . 20 85 20 10 Lost Ally 180 | . . . . 120 60 . . . . . . . Purge Threat 300 | . . . . 300 . . . . . . . . Squads Dispatched 12 | . 2 1 . 3 . 3 . 2 . . . 1 Investigation 6 | . 1 1 . 2 . 1 . 1 . . . . Extermination 2 | . . . . . . 1 . 1 . . . . Reinforcement 4 | . 1 . . 1 . 1 . . . . . 1 Assault . | . . . . . . . . . . . . . Garrison . | . . . . . . . . . . . . . Intercept . | . . . . . . . . . . . . . Searches Triggered . | . . . . . . . . . . . . . Construction Impeded 1 | . . . . . . 1 . . . . . . Haulers Reinforced . | . . . . . . . . . . . . . Active Scanning Responses . | . . . . . . . . . . . . . Cargo Convoy Interrupts . | . . . . . . . . . . . . . Stealth | -11 -10 -9 -8 -8 -8 -7 -7 -7 -7 -7 -6 -6 --------- Run | Yrd Mat Mat Mat Sto Gar Fac Was Fac Low Low Fac Ext Distress Signals 7 | . 1 3 . 2 . . . . . . . 1 Communications Jammed . | . . . . . . . . . . . . . Distress Signals . | . . . . . . . . . . . . . Times Spotted 139 | . 17 8 3 24 14 5 6 9 6 14 21 12 Peak Tracking Total 8 | . 7 4 2 5 6 3 6 3 3 8 7 7 Tactical Retreats 9 | . . . . . . 1 . . . 2 4 2 Traps | -11 -10 -9 -8 -8 -8 -7 -7 -7 -7 -7 -6 -6 ------- Run | Yrd Mat Mat Mat Sto Gar Fac Was Fac Low Low Fac Ext Traps Triggered 14 | . 1 . . 4 6 1 . 2 . . . . Indirectly . | . . . . . . . . . . . . . Trap Hack Attempts . | . . . . . . . . . . . . . Triggered . | . . . . . . . . . . . . . Disarmed . | . . . . . . . . . . . . . Reprogrammed . | . . . . . . . . . . . . . Reused . | . . . . . . . . . . . . . Traps Extracted . | . . . . . . . . . . . . . Installed . | . . . . . . . . . . . . . Triggered . | . . . . . . . . . . . . . Machines | -11 -10 -9 -8 -8 -8 -7 -7 -7 -7 -7 -6 -6 ---------- Run | Yrd Mat Mat Mat Sto Gar Fac Was Fac Low Low Fac Ext Machines Disabled 11 | . . . . 6 5 . . . . . . . Max in Single Turn 1 | . . . . 1 1 . . . . . . . Garrison Relay 2 | . . . . . 2 . . . . . . . Machines Repaired . | . . . . . . . . . . . . . Machines Dismantled . | . . . . . . . . . . . . . Machines Sabotaged . | . . . . . . . . . . . . . Overloaded Fab Kills . | . . . . . . . . . . . . . Hacking | -11 -10 -9 -8 -8 -8 -7 -7 -7 -7 -7 -6 -6 --------- Run | Yrd Mat Mat Mat Sto Gar Fac Was Fac Low Low Fac Ext Machines Accessed 29 | . 3 4 3 12 1 2 . 2 2 . . . Terminals 20 | . 1 3 3 10 1 1 . 1 . . . . Fabricators 1 | . . . . . . . . 1 . . . . Repair Stations 2 | . 1 . . 1 . . . . . . . . Recycling Units 1 | . 1 . . . . . . . . . . . Scanalyzers 2 | . . 1 . . . 1 . . . . . . Garrison Access 1 | . . . . 1 . . . . . . . . Total Hacks 93 | . 9 16 8 44 2 5 . 4 5 . . . Successful 59 | . 5 11 4 30 . 2 . 2 5 . . . Failed 34 | . 4 5 4 14 2 3 . 2 . . . . Catastrophic 6 | . . 1 . 2 2 . . 1 . . . . Database Lockouts . | . . . . . . . . . . . . . Manual 43 | . 2 8 7 19 . 2 . . . . 5 . Terminals 65 | . 2 10 8 39 2 2 . 2 . . . . Fabricators 2 | . . . . . . . . 2 . . . . Repair Stations 7 | . 3 . . 4 . . . . . . . . Recycling Units 4 | . 4 . . . . . . . . . . . Scanalyzers 9 | . . 6 . . . 3 . . . . . . Garrison Access 1 | . . . . 1 . . . . . . . . Terminal Hacks 23 | . . 1 1 15 . . . 1 5 . . . Record 4 | . . . . . . . . . 4 . . . Part Schematic 2 | . . . . 2 . . . . . . . . Prototype ID Bank 3 | . . . . 2 . . . 1 . . . . Open Door 4 | . . . . 3 . . . . 1 . . . Branch Access Points 1 | . . . 1 . . . . . . . . . Alert Level 3 | . . 1 . 2 . . . . . . . . Unreport Threat 2 | . . . . 2 . . . . . . . . Dispatch Records 1 | . . . . 1 . . . . . . . . Security Status 1 | . . . . 1 . . . . . . . . Surveillance Status 1 | . . . . 1 . . . . . . . . Patrol Status 1 | . . . . 1 . . . . . . . . Fabricator Hacks 1 | . . . . . . . . 1 . . . . Build 1 | . . . . . . . . 1 . . . . Repair Station Hacks 6 | . 2 . . 4 . . . . . . . . Scan Component 3 | . 1 . . 2 . . . . . . . . Repair 3 | . 1 . . 2 . . . . . . . . Recycling Unit Hacks 2 | . 2 . . . . . . . . . . . Report Inventory 1 | . 1 . . . . . . . . . . . Retrieve Components 1 | . 1 . . . . . . . . . . . Scanalyzer 7 | . . 6 . . . 1 . . . . . . Insert Component 1 | . . 1 . . . . . . . . . . Analyze 1 | . . 1 . . . . . . . . . . Retrieve Study 5 | . . 4 . . . 1 . . . . . . Garrison Access Hacks 1 | . . . . 1 . . . . . . . . Unlock Access 1 | . . . . 1 . . . . . . . . Unauthorized Hacks 19 | . 1 4 3 10 . 1 . . . . . . Terminals 19 | . 1 4 3 10 . 1 . . . . . . Track 2 | . . . . 2 . . . . . . . . Assimilate 2 | . . 1 . . . 1 . . . . . . Botnet 10 | . . 1 2 7 . . . . . . . . Operators 5 | . 1 2 1 1 . . . . . . . . Fabricators . | . . . . . . . . . . . . . Repair Stations . | . . . . . . . . . . . . . Recycling Units . | . . . . . . . . . . . . . Scanalyzers . | . . . . . . . . . . . . . Garrison Access . | . . . . . . . . . . . . . Data Cores Recovered 1 | . . . 1 . . . . . . . . . Used . | . . . . . . . . . . . . . Hacking Detections 25 | . 3 4 3 10 1 2 . 2 . . . . Full Trace Events 7 | . 1 2 . 1 1 1 . 1 . . . . Feedback Events 1 | . . 1 . . . . . . . . . . Corruption 1 | . . 1 . . . . . . . . . . Feedback Blocked . | . . . . . . . . . . . . . Robot Schematics Acquired . | . . . . . . . . . . . . . Robots Built . | . . . . . . . . . . . . . Authchips . | . . . . . . . . . . . . . Time . | . . . . . . . . . . . . . Total Robot Build Rating . | . . . . . . . . . . . . . Part Schematics Acquired 3 | . . 1 . 2 . . . . . . . . Parts Built 2 | . . . . . . . . 2 . . . . Authchips . | . . . . . . . . . . . . . Time 53 | . . . . . . . . 53 . . . . Total Part Build Rating 12 | . . . . . . . . 12 . . . . Part Studies Acquired 5 | . . 4 . . . 1 . . . . . . Parts Repaired 3 | . 1 . . 2 . . . . . . . . Time 149 | . 38 . . 111 . . . . . . . . Parts Recycled . | . . . . . . . . . . . . . Recycled Matter . | . . . . . . . . . . . . . Retrieved Matter . | . . . . . . . . . . . . . Retrieved Components 9 | . 9 . . . . . . . . . . . Parts Scanalyzed 1 | . . 1 . . . . . . . . . . Part Schematics Acquired 1 | . . 1 . . . . . . . . . . Parts Damaged . | . . . . . . . . . . . . . Bothacking | -11 -10 -9 -8 -8 -8 -7 -7 -7 -7 -7 -6 -6 ------------ Run | Yrd Mat Mat Mat Sto Gar Fac Was Fac Low Low Fac Ext Used RIF Installer 1 | . . . . . 1 . . . . . . . Robots Hacked 4 | . . . . . . 2 . 1 1 . . . Non-combat 2 | . . . . . . 1 . 1 . . . . Combat 2 | . . . . . . 1 . . 1 . . . Robot Hacks Applied 4 | . . . . . . 2 . 1 1 . . . parse_system 3 | . . . . . . 1 . 1 1 . . . no_distress 1 | . . . . . . 1 . . . . . . Relay Couplers Released 8 | . . . . . 8 . . . . . . . Machine Destruction 8 | . . . . . 8 . . . . . . . Fabnet Peak Effective % . | . . . . . . . . . . . . . Robots Rewired . | . . . . . . . . . . . . . Allies Hacked . | . . . . . . . . . . . . . Hacks Repelled . | . . . . . . . . . . . . . Allies | -11 -10 -9 -8 -8 -8 -7 -7 -7 -7 -7 -6 -6 -------- Run | Yrd Mat Mat Mat Sto Gar Fac Was Fac Low Low Fac Ext Total Allies 11 | . . . . 10 . . . . . 1 . . Largest Group 10 | . . . . 10 3 . . . . 1 . . Highest-Rated Group 173 | . . . . 173 61 . . . . 138 . . Highest-Rated Ally 138 | . . . . 29 29 . . . . 138 . . Total Orders . | . . . . . . . . . . . . . Ally Attacks 221 | . . . . 183 32 . . . . 6 . . Total Damage 4228 | . . . . 2201 388 . . . . 1639 . . Kills 50 | . . . . 32 7 . . . . 11 . . Allies Corrupted . | . . . . . . . . . . . . . Allies Melted . | . . . . . . . . . . . . . Intel | -11 -10 -9 -8 -8 -8 -7 -7 -7 -7 -7 -6 -6 ------- Run | Yrd Mat Mat Mat Sto Gar Fac Was Fac Low Low Fac Ext Active Infowar (turns) 25531 | 24689 279 . . . . 563 . . . . . . Sensors 563 | . . . . . . 563 . . . . . . Terrain 22967 | 22688 279 . . . . . . . . . . . Seismic 2001 | 2001 . . . . . . . . . . . . Robot Analysis Total . | . . . . . . . . . . . . . Derelict Logs Recovered 4 | . . . . . . . . . 1 3 . . Drone Launches . | . . . . . . . . . . . . . Drone Recoveries . | . . . . . . . . . . . . . Exploration | -11 -10 -9 -8 -8 -8 -7 -7 -7 -7 -7 -6 -6 ------------- Run | Yrd Mat Mat Mat Sto Gar Fac Was Fac Low Low Fac Ext Turns Passed 34185 | 25013 1940 599 285 2137 984 768 134 464 1353 134 72 302 Spaces Moved 8015 | 2922 860 295 151 1020 504 276 131 195 807 192 117 545 Core 858 | 16 . . . . . 8 68 . . 160 61 545 Treads 93 | 17 . . . . . . 5 71 . . . . Legs 3132 | 2889 174 . . . . . . 69 . . . . Wheels 37 | . . . . . . . . 37 . . . . Hover 2649 | . . 108 151 1020 504 268 58 18 466 . 56 . Flight 1246 | . 686 187 . . . . . . 341 32 . . Fastest Speed 35 | 50 107 98 98 158 158 98 50 100 114 35 50 50 Average Speed 132 | 119 185 145 98 158 158 152 97 147 158 60 58 50 Slowest Speed 410 | 160 387 410 98 162 158 350 286 200 355 115 100 50 Overloaded Moves . | . . . . . . . . . . . . . Propulsion Burnouts . | . . . . . . . . . . . . . Robots Hopped . | . . . . . . . . . . . . . Potential Cave-ins . | . . . . . . . . . . . . . Cave-ins Triggered . | . . . . . . . . . . . . . Exploration Rate (%) 39 | 67 56 27 12 86 44 5 77 5 78 26 6 25 Regions Visited 12 Branch Regions 4 Pre-discovered Areas 2 | . . . . . . . . . 1 1 . . Known Exits Taken 3 | . 1 . 1 1 . . . . . . . . Unknown Exits Taken 6 | 1 . 1 . . . . . 1 1 1 1 . Scrap Searched 10 | . . . . . . . . . 10 . . . Spaces Dug 27 | 27 . . . . . . . . . . . . Terrain Destroyed 45 | 31 . . . 7 7 . . . . . . . Melee . | . . . . . . . . . . . . . Projectile 31 | 31 . . . . . . . . . . . . AOE 14 | . . . . 7 7 . . . . . . . Terrain Rammed . | . . . . . . . . . . . . . Walls Destroyed . | . . . . . . . . . . . . . Machines Disabled . | . . . . . . . . . . . . . Actions | -11 -10 -9 -8 -8 -8 -7 -7 -7 -7 -7 -6 -6 --------- Run | Yrd Mat Mat Mat Sto Gar Fac Was Fac Low Low Fac Ext Total 31052 | 24278 1133 415 283 1477 645 595 137 337 855 204 119 574 Wait 22221 | 21227 180 32 119 267 35 255 . 97 1 6 . 2 Move 8004 | 2921 859 294 150 1019 503 276 130 194 806 191 116 545 Hop . | . . . . . . . . . . . . . Pick Up 155 | 29 23 26 5 47 6 8 2 6 3 . . . Fast Attach 43 | . . 2 . 5 5 2 2 13 10 2 2 . Attach 27 | 8 1 2 2 3 . 5 . 5 1 . . . Detach 2 | 1 . . . . . . . 1 . . . . Swap 62 | 15 7 13 2 15 6 3 . . 1 . . . Drop 129 | 8 17 19 3 50 6 5 3 5 13 . . . Fire 243 | 69 46 27 2 42 16 4 . 16 18 3 . . Melee 53 | . . . . . 16 37 . . . . . . Ram 30 | . . . . 1 . . . . . 2 . 27 Kick . | . . . . . . . . . . . . . Crush . | . . . . . . . . . . . . . Escape Stasis 65 | . . . . 13 52 . . . . . . . Rewire 18 | . . . . 15 . . . . 2 . 1 . Trap . | . . . . . . . . . . . . . Miscellaneous . | . . . . . . . . . . . . . Route ------- -11/Scrapyard -10/Materials -9/Materials -8/Materials -8/Storage -8/Garrison -7/Factory -7/Waste -7/Factory -7/Lower Caves -7/Lower Caves -6/Factory (discovered 3 exits: Fac x2 / [*Ext]) -6/Extension History --------- Turn | Location | Event 48 | -11/Scrapyard | Discovered new exit (range 16) 25014 | -11/Scrapyard | Entered Materials 25015 | -10/Materials | Build established: Mutant 25681 | -10/Materials | Discovered new exit (range 5) 25745 | -10/Materials | Identified exit to Materials 26713 | -10/Materials | Repaired Hacking Suite 26954 | -10/Materials | Entered another Materials area 26954 | -9/Materials | Evolved 2 slots: Propulsion x2 27491 | -9/Materials | Discovered new exit (range 8) 27553 | -9/Materials | Entered another Materials area 27553 | -8/Materials | Evolved 2 slots: Utility x1, Weapon x1 27762 | -8/Materials | Discovered new exit (range 14) 27800 | -8/Materials | Identified exit to Storage 27838 | -8/Materials | Entered Storage 27859 | -8/Storage | Build established: Gunner 28032 | -8/Storage | Repaired Aerolev Unit 28059 | -8/Storage | Assisted by bots powering up and referring to "LRC-V3" 28084 | -8/Storage | Repaired Adv. Beam Cannon? 28393 | -8/Storage | Build established: Commander-Gunner 29775 | -8/Storage | Identified exit to Garrison 29949 | -8/Storage | Build established: Gunner 29975 | -8/Storage | Entered Garrison 29975 | -8/Garrison | Accompanied by 3 allies 29993 | -8/Garrison | Triggered checkpoint 30121 | -8/Garrison | Triggered checkpoint 30154 | -8/Garrison | Garrison Relay disabled 30263 | -8/Garrison | Triggered checkpoint 30286 | -8/Garrison | Build established: Tank 30412 | -8/Garrison | Lost 3 parts (3w) 30437 | -8/Garrison | Discovered new exit (range 8) 30587 | -8/Garrison | Installed Relay Interface Framework 30879 | -8/Garrison | Garrison Relay disabled 30959 | -8/Garrison | Entered Factory 30959 | -7/Factory | Evolved 2 slots: Utility x2 31176 | -7/Factory | Build established: Bothacker-Mutant 31669 | -7/Factory | Lost 3 parts (1n2u) 31727 | -7/Factory | Sucked down chute 31727 | -7/Factory | Entered Waste 31742 | -7/Waste | EMP discharged 31743 | -7/Waste | Spotted C-40 Crusher 31751 | -7/Waste | Crushed by Compactor (1 part destroyed, 2 dropped) 31751 | -7/Waste | Spotted C-40 Crusher 31752 | -7/Waste | Spotted C-40 Crusher 31797 | -7/Waste | Spotted C-40 Crusher 31800 | -7/Waste | Spotted C-40 Crusher 31800 | -7/Waste | Spotted C-40 Crusher 31811 | -7/Waste | Crushed by Compactor (1 part destroyed, 1 dropped) 31812 | -7/Waste | Crushed by Compactor (1 part destroyed, 1 dropped) 31813 | -7/Waste | Crushed by Compactor (1 part destroyed, 1 dropped) 31814 | -7/Waste | Crushed by Compactor (1 part destroyed, 1 dropped) 31836 | -7/Waste | System corruption reached 10% 31842 | -7/Waste | EMP discharged 31844 | -7/Waste | Discovered new exit (range 10) 31845 | -7/Waste | Lost 5 parts (3n1u1w) 31861 | -7/Waste | Entered Factory 32004 | -7/Factory | Fabricated Imp. Corruption Screen? 32297 | -7/Factory | Discovered new exit (range 13) 32325 | -7/Factory | Entered Lower Caves 32643 | -7/Lower Caves | Build established: Derelict-Gunner 32772 | -7/Lower Caves | Learned location of Zion (-6) 32893 | -7/Lower Caves | Entered an active Warlord outpost 33155 | -7/Lower Caves | Ambushed by research squad 33165 | -7/Lower Caves | Core integrity fell below 50% 33669 | -7/Lower Caves | Discovered new exit (range 9) 33678 | -7/Lower Caves | Entered another Lower Caves area 33698 | -7/Lower Caves | Learned 8 Factory zone layouts 33700 | -7/Lower Caves | Learned 4 Factory zone layouts 33728 | -7/Lower Caves | Attracted the attention of an 0b10 checkpoint 33742 | -7/Lower Caves | Core integrity fell below 20% 33756 | -7/Lower Caves | Lost 10 parts (1p2n4u3w) 33770 | -7/Lower Caves | 99-TNT showed up to help 33796 | -7/Lower Caves | Learned location of Extension (-6) 33808 | -7/Lower Caves | 99-TNT revealed a hidden path 33812 | -7/Lower Caves | Entered Factory 33812 | -6/Factory | Evolved 2 slots: Utility x2 33813 | -6/Factory | Identified exit to Factory 33877 | -6/Factory | Discovered new exit (range 12) 33883 | -6/Factory | Core integrity fell below 50% 33884 | -6/Factory | Entered Extension 34008 | -6/Extension | Build established: Mutant 34109 | -6/Extension | Disrupted transfer network 34133 | -6/Extension | Spotted B-75 Beast 34159 | -6/Extension | Core integrity fell below 20% 34186 | -6/Extension | Destroyed by Y-54 Guardian with Flak Gun Last Messages --------------- 34106_ System corrupted: Substantial component data lost. 34109_ ALERT: Persistent threat to transfer network, dispatching additional forces. 34125_ System corrupted: Matter fused (-9). 34128_ O-16 Technician: "IFF HANDSHAKE FAILED. SECURING TERMINAL." 34140_ ALERT: Hostiles spotted, dispatching reinforcements to Terminal E002. 34152_ Acquired 2 matter. 34154_ K-01 Serf destroyed. 34155_ Acquired 3 matter. 34157_ 3N1RAMY ED JBAKQ7YJ8=> HR0FIXQBBL6 34157_ Acquired 4 matter. 34158_ Critical hit (Burn: +37). 34171_ K-01 Serf exits Transfer Station. 34171_ R-10 Processor exits Transfer Station. 34182_ O-24 Administrator: "IFF HANDSHAKE FAILED. SECURING TERMINAL." 34182_ W-25 Informer sends out distress signal. Map ----- +----------------------------------------------------+ | | | | | | | | | | | | | | | | | | | | | | | | | | | | | | | | | | | ??????????????????????????????? | | ??????##############??????????? | | ?????# ??????????? | | ?????" ??????????? | | ????? ?????????? | | ?????" ?????????? | | ?????# ????????? | | ?????# ????????? | | ?????#@ ????????? | | ?????# ???????? | | ?????# R w ???????? | | ?????# ??????? | | ?????# ??????? | | ?????# ??????? | | ?????# Y ??????? | | ?????# ###########+###????????? | | ?????#%#??????????????????????? | | ?????# #??????????????????????? | | ?????# #??????????????????????? | | ?????#%#??????????????????????? | | ?????# #??????????????????????? | | ?????# #??????????????????????? | | ?????#%#??????????????????????? | | ?????#%#??????????????????????? | | ?????# #??????????????????????? | | ?????# #??????????????????????? | | ?????# #??????????????????????? | | ?????# #??????????????????????? | | ?????#%#??????????????????????? | | ?????# #??????????????????????? | | ?????# #??????????????????????? | | ?????#%#??????????????????????? | | ?????# #??????????????????????? | +----------------------------------------------------+ Best States ------------- Heat Dissipation 37 Energy Generation 16 Energy Capacity 300 Matter Stores 367 Matter Capacity 400 Sight Range 16 Robot Scan Range 15 Terrain Scan Range 16 Terrain Scan Density 10 Additional Mass Support 9 Base Temperature (-) 100 Corruption Block 15 Armor Coverage 225 Core Shielding 20 Utility Shielding 33 Weapon Shielding 66 Evasion (%) 55 Core Analysis 6 Recoil Reduction 2 Energy Filtering 30 Offensive Hacking 11 Authchip Count 4 Item Schematics ----------------- Rnf. Ion Engine | -9/Materials | Scanalyzed Adv. Targeting Computer | -8/Storage | Hacked Hacking Suite | -8/Storage | Hacked Robot Schematics ------------------ None Fabricated ------------ Imp. Corruption Screen | x2 | -7/Factory | Preloaded Repaired ---------- Hacking Suite | 80% | -10/Materials Aerolev Unit | 62% | -8/Storage Adv. Beam Cannon | 42% | -8/Storage Studied --------- Autogun | -9/Materials | Hacked Rnf. Ion Engine | -9/Materials | Hacked Welding Torch | -9/Materials | Hacked Datajack | -9/Materials | Hacked Imp. Datajack | -7/Factory | Hacked Alien Tech Used ----------------- None Achievements -------------- Analysis Probe Join The Dark Side Maximum Efficiency Challenges ------------ None Game ------ Seed BattleCompanionTurbovents Manual? 0 Play Time 02:32:50 Cumulative 75.9 hours Start 2026.08.11 @ 16:22:28 End 2026.08.11 @ 19:53:49 Sessions 2 Manual Loads 0 Difficulty Rogue Special Mode None Game No. 134 Rogue 134 Adventurer 0 Explorer 0 Win Type - Total 0 Types 0/0/0/0/0/0/0/0/0/0 Lore% 24 Gallery% 32 Achievement% 26 Wizard Run 0 Options --------- Layout 1 ASCII 0 Keyboard 0 Movement Mouse Keybinds 0 Fullscreen 1 Font 24/Smallcaps Map View 50x35 Zoom Use 0% Tactical HUD 1 Map Filters NONE Filters NONE Steam 1 RUN: 5e7eee31-e622-4aef-a2da-6871255fb213